bitfinex-derivatives/quotes_ETHF0:USTF0_20250123
["timestamp","ask_amount","ask_price","bid_price","bid_amount"]
[1737638556009,3.83132,3209.1,3208.9,0.62353]
[1737638556503,0.62352,3209.0,3208.6,0.5066]
[1737638556703,0.62354,3208.9,3208.8,0.62355]
[1737638556905,0.62354,3208.9,3208.8,41.42355]
[1737638557101,3.2078,3209.1,3208.8,40.8]
[1737638558004,0.62353,3209.0,3208.9,0.62354]
[1737638558205,3.2078,3209.1,3208.8,41.42355]
[1737638558410,0.62354,3208.9,3208.8,41.42355]
[1737638559508,0.62353,3209.0,3208.9,0.62353]
[1737638560314,0.62354,3208.9,3208.8,41.42355]
[1737638560709,3.2078,3209.1,3208.8,40.8]
[1737638561016,0.62353,3209.0,3208.9,0.62354]
[1737638561212,0.62354,3208.9,3208.8,41.42355]
[1737638561615,0.62354,3208.9,3208.8,40.8]
[1737638561814,0.6236,3208.6,3208.5,3.2078]
[1737638562013,0.62365,3208.4,3208.3,0.62365]
[1737638562212,0.62354,3208.9,3208.4,0.62362]
[1737638562521,0.62364,3208.4,3208.3,0.62364]
[1737638562718,1.55889,3208.9,3208.1,5.67225613]
[1737638562905,0.62364,3208.4,3208.3,0.62365]
[1737638563518,0.62363,3208.5,3208.4,0.62363]
[1737638563718,0.62356,3208.8,3208.5,0.62362]
[1737638564014,0.5027,3209.0,3208.1,5.67225613]
[1737638564214,3.2078,3209.1,3208.7,0.62357]
[1737638564411,0.62357,3208.8,3208.7,0.62357]
[1737638564609,0.62359,3208.7,3208.6,0.62359]
[1737638565415,3.2078,3209.1,3208.5,0.478]
[1737638565615,0.6236,3208.6,3208.5,1.10161]
[1737638565810,1.55881,3209.0,3208.5,0.478]
[1737638566011,0.62359,3208.7,3208.6,0.62359]
[1737638566319,0.62364,3208.4,3208.3,0.62365]
[1737638566617,0.62363,3208.5,3208.4,0.62363]
[1737638567924,1.55881,3209.0,3208.2,3.2078]
[1737638568218,0.62361,3208.6,3208.5,0.62361]
[1737638570808,0.62359,3208.7,3208.6,0.6236]
[1737638571009,0.62355,3208.9,3208.8,0.62355]
[1737638571315,0.62353,3209.0,3208.8,0.62355]
[1737638571626,0.62354,3208.9,3208.8,0.62355]
[1737638572618,0.62358,3208.7,3208.6,1.11909]
[1737638572819,3.2078,3208.7,3207.8,2.46445613]
[1737638573122,0.62366,3208.3,3207.9,41.42373]
[1737638573324,0.62366,3208.3,3207.7,3.21247574]
[1737638573325,2.46445613,3208.1,3207.7,3.21247574]
[1737638573521,6.29600613,3207.8,3207.7,5.74e-06]
[1737638573821,11.19846246,3207.8,3207.7,5.74e-06]
[1737638574016,16.19846246,3207.8,3207.7,5.74e-06]
[1737638576626,15.79542991,3207.8,3207.7,5.74e-06]
[1737638576824,16.19665138,3207.8,3207.7,5.74e-06]
[1737638577428,0.62411,3206.0,3205.8,0.62414]
[1737638577623,0.62411,3206.0,3205.8,0.62413]
[1737638577828,3.2078,3206.4,3205.9,40.8]
[1737638578028,0.6241,3206.0,3205.9,40.8]
[1737638578229,0.6241,3206.1,3205.9,40.8]
[1737638578832,0.62408,3206.2,3206.0,0.6241]
[1737638579236,0.62408,3206.2,3205.9,40.8]
[1737638579237,0.62408,3206.2,3205.9,41.42411]
[1737638579531,0.62408,3206.2,3206.0,0.6241]
[1737638579730,0.62408,3206.2,3205.9,41.42412]
[1737638580032,0.00467574,3206.3,3205.9,41.42412]
[1737638580033,0.62409,3206.1,3205.9,41.42412]
[1737638580334,0.62409,3206.2,3205.9,41.42412]
[1737638580523,0.00467574,3206.3,3205.9,41.42412]
[1737638580728,0.00467574,3206.3,3205.9,40.8]
[1737638580929,0.6241,3206.0,3205.9,40.8]
[1737638582033,0.62873574,3206.3,3206.0,0.6241]
[1737638582231,0.00467574,3206.3,3206.1,2.46445613]
[1737638582428,0.00467574,3206.3,3206.2,0.62407]
[1737638582828,0.00467574,3206.3,3206.1,2.46445613]
[1737638583024,0.00467574,3206.3,3206.2,0.62407]
[1737638583226,0.62872574,3206.3,3206.1,2.46445613]
[1737638583433,0.00467574,3206.3,3206.1,2.46445613]
[1737638583631,0.00467574,3206.3,3206.1,3.08853613]
[1737638583832,0.00467574,3206.3,3206.2,0.62407]
[1737638584441,5.0698,3207.7,3207.0,0.6239]
[1737638584636,0.6238,3207.6,3207.3,0.62385]
[1737638584840,0.62383,3207.5,3207.4,40.8]
[1737638585631,0.62381,3207.5,3207.4,40.8]
[1737638585833,0.62381,3207.5,3207.2,0.62386]
[1737638586034,0.62383,3207.4,3207.2,0.62386]
[1737638586232,3.2078,3207.7,3207.3,0.62385]
[1737638586233,0.62382,3207.5,3207.3,0.62385]
[1737638586432,3.2078,3207.7,3207.4,40.8]
[1737638586650,0.62381,3207.6,3207.4,40.8]
[1737638586843,0.62381,3207.5,3207.4,40.8]
[1737638587334,0.62387,3207.2,3207.1,3.21247574]
[1737638587736,0.62387,3207.2,3207.1,44.01247574]
[1737638589640,0.62387,3207.2,3207.1,40.80467574]
[1737638589841,0.62386,3207.3,3207.1,41.42855574]
[1737638590237,0.62381,3207.5,3207.1,40.80467574]
[1737638590539,0.62387,3207.2,3207.1,40.80467574]
[1737638590841,0.62387,3207.2,3207.1,0.00467574]
[1737638592938,0.4777,3207.6,3207.1,0.00467574]
[1737638593143,0.62387,3207.2,3207.1,0.00467574]
[1737638595247,0.62387,3207.2,3207.1,0.62856574]
[1737638595446,0.62387,3207.2,3207.1,0.00467574]
[1737638598144,0.4777,3207.6,3207.1,0.00467574]
[1737638598350,0.62387,3207.2,3207.1,0.62855574]
[1737638598849,0.62387,3207.2,3207.1,0.00467574]
[1737638599650,0.4777,3207.6,3207.1,0.00467574]
[1737638599844,0.62387,3207.2,3207.1,0.62855574]
[1737638600047,0.4777,3207.6,3207.1,0.00467574]
[1737638600357,0.62387,3207.2,3207.1,0.00467574]
[1737638600851,0.62386,3207.3,3207.2,0.62387]
[1737638601043,0.62387,3207.2,3207.1,0.00467574]
[1737638601246,0.62387,3207.2,3207.1,0.62856574]
[1737638601550,0.4777,3207.6,3207.1,0.00467574]
[1737638601755,0.4777,3207.6,3207.2,0.62386]
[1737638602150,0.62387,3207.3,3207.2,0.62387]
[1737638603346,0.62385,3207.3,3207.2,0.62387]
[1737638603645,0.62381,3207.5,3207.1,0.62855574]
[1737638603952,0.62387,3207.3,3207.2,0.62387]
[1737638605046,3.2078,3207.7,3207.1,0.00467574]
[1737638605552,0.00467574,3207.8,3207.7,0.62377]
[1737638606057,0.00467574,3207.8,3207.7,1.14617]
[1737638606262,0.00467574,3207.8,3207.7,1.63447]
[1737638607145,3.2078,3208.7,3207.7,1.0107]
[1737638607352,0.9931,3208.8,3208.0,3.2078]
[1737638607655,0.4749,3208.8,3208.6,0.62359]
[1737638607851,0.4749,3208.8,3208.5,0.62361]
[1737638608051,0.62359,3208.7,3208.5,0.62361]
[1737638608752,0.4749,3208.8,3208.5,0.62361]
[1737638608950,0.6236,3208.6,3208.5,0.62361]
[1737638609553,0.6236,3208.6,3208.4,0.62363]
[1737638610352,0.6236,3208.6,3208.5,0.62362]
[1737638610553,0.6236,3208.7,3208.5,0.62362]
[1737638610755,0.4749,3208.8,3208.5,0.62362]
[1737638610756,0.6236,3208.6,3208.5,0.62362]
[1737638611156,0.4749,3208.8,3208.5,0.62362]
[1737638611348,0.62361,3208.6,3208.4,0.62362]
[1737638611550,0.62361,3208.6,3208.5,0.62362]
[1737638611756,0.6236,3208.7,3208.5,0.62362]
[1737638611953,0.62361,3208.6,3208.4,0.62364]
[1737638612156,0.4749,3208.8,3208.3,0.4954]
[1737638612450,0.6236,3208.6,3208.3,0.4954]
[1737638612650,0.62362,3208.5,3208.4,0.62362]
[1737638612849,0.62361,3208.6,3208.4,0.62362]
[1737638613256,0.4749,3208.8,3208.4,0.62362]
[1737638613460,0.62362,3208.5,3208.4,0.62362]
[1737638613658,0.62361,3208.6,3208.4,0.62362]
[1737638614251,0.62361,3208.6,3208.3,0.4954]
[1737638614451,0.62361,3208.6,3208.5,0.62362]
[1737638614654,0.62361,3208.6,3208.4,0.62363]
[1737638615258,0.4749,3208.8,3208.3,0.4954]
[1737638615454,0.62361,3208.6,3208.4,0.62363]
[1737638616260,0.62361,3208.6,3208.5,0.62362]
[1737638616673,0.62361,3208.6,3208.0,4.76708]
[1737638616874,0.62361,3208.6,3208.5,0.62362]
[1737638617067,0.4749,3208.8,3208.5,0.62362]
[1737638617269,0.62359,3208.7,3208.0,4.76708]
[1737638617468,0.4749,3208.8,3208.7,0.62358]
[1737638618568,0.00467574,3208.9,3208.8,0.62356]
[1737638618569,0.62821574,3208.9,3208.8,0.62356]
[1737638618769,0.00467574,3208.9,3208.8,0.62356]
[1737638619574,0.62821574,3208.9,3208.5,2.97995613]
[1737638619775,0.00467574,3208.9,3208.5,2.97995613]
[1737638619970,0.62364,3208.4,3208.3,0.62365]
[1737638620177,0.00467574,3208.9,3208.2,2.46445613]
[1737638620376,0.62358,3208.8,3208.7,0.62358]
[1737638620570,0.00467574,3208.9,3208.8,0.62356]
[1737638621276,0.00467574,3208.9,3208.4,3.2078]
[1737638621473,0.62362,3208.5,3208.4,3.2078]
[1737638624069,1.13187,3208.8,3208.7,0.62358]
[1737638624265,0.00467574,3208.9,3208.4,3.2078]
[1737638624470,0.62824574,3208.9,3208.8,0.62356]
[1737638625268,0.00467574,3208.9,3208.8,0.62356]
[1737638626377,0.00467574,3208.9,3208.8,41.42356]
[1737638626981,0.62821574,3208.9,3208.8,41.42356]
[1737638627176,0.00467574,3208.9,3208.8,41.42356]
[1737638631279,0.00467574,3208.9,3208.8,0.62356]
[1737638631685,0.00467574,3208.9,3208.8,41.42356]
[1737638636383,0.62356,3208.8,3208.4,3.2078]
[1737638636582,0.00467574,3208.9,3208.0,3.2078]
[1737638636583,1.5004,3208.7,3208.0,3.2078]
[1737638636785,1.5004,3208.7,3208.1,40.8]
[1737638636786,0.6237,3208.2,3208.1,40.8]
[1737638637088,1.55921,3208.2,3207.6,3.2078]
[1737638637289,0.62379,3207.7,3207.5,0.62381]
[1737638637487,0.62377,3207.7,3207.6,40.8]
[1737638638187,0.62377,3207.7,3207.6,41.42379]
[1737638638388,0.62376,3207.8,3207.7,0.62377]
[1737638638888,0.62376,3207.8,3207.6,40.8]
[1737638639088,0.62376,3207.8,3207.7,0.62377]
[1737638639482,0.62376,3207.8,3207.6,40.8]
[1737638639787,0.5154,3207.9,3207.6,40.8]
[1737638639992,0.62377,3207.7,3207.6,40.8]
[1737638640681,0.62381,3207.5,3207.4,0.62383]
[1737638640885,0.62384,3207.4,3207.1,0.00467574]
[1737638641184,2.0348,3207.8,3207.2,40.8]
[1737638641185,0.62385,3207.3,3207.2,40.8]
[1737638641387,1.10045,3207.3,3207.2,40.8]
[1737638642984,0.4766,3207.3,3207.2,40.8]
[1737638643189,0.4766,3207.3,3207.2,41.42387]
[1737638643587,0.5154,3207.9,3207.2,40.8]
[1737638643797,0.5154,3207.9,3207.4,2.46445613]
[1737638644089,0.62378,3207.7,3207.5,0.6238]
[1737638644287,1.0276,3207.9,3207.4,2.46445613]
[1737638644483,0.62376,3207.8,3207.6,0.62377]
[1737638644687,1.0276,3207.9,3207.4,2.46445613]
[1737638644881,0.62376,3207.8,3207.6,0.62379]
[1737638645389,0.62376,3207.8,3207.7,0.62377]
[1737638645588,1.65134,3207.9,3207.8,0.62376]
[1737638645990,0.62376,3207.8,3207.4,2.46445613]
[1737638646190,0.62376,3207.8,3207.7,0.62377]
[1737638646979,2.58698,3207.9,3207.2,41.2832]
[1737638647185,0.62385,3207.3,3207.2,40.8]
[1737638647484,0.62385,3207.3,3207.1,0.00467574]
[1737638647485,0.62387,3207.2,3207.1,0.00467574]
[1737638647788,0.62387,3207.2,3207.1,0.62856574]
[1737638647789,1.12947,3207.2,3207.1,0.62856574]
[1737638647978,1.12947,3207.2,3207.1,0.00467574]
[1737638650585,0.5052,3207.4,3207.1,0.00467574]
[1737638650586,0.62385,3207.4,3207.1,0.62856574]
[1737638650893,3.2078,3207.5,3207.2,0.62387]
[1737638651095,0.62379,3207.7,3207.5,0.62381]
[1737638651594,0.4841,3207.8,3207.5,0.62381]
[1737638651595,0.62379,3207.6,3207.5,0.62381]
[1737638651889,0.4841,3207.8,3207.1,4.51036187]
[1737638652108,0.5154,3207.9,3207.7,2.46445613]
[1737638652396,3.2078,3208.2,3208.1,0.6237]
[1737638654593,0.4886,3208.4,3207.8,2.0381]
[1737638654795,1.11224,3208.4,3208.3,0.62366]
[1737638654997,0.4886,3208.4,3207.9,1.55935]
[1737638655187,1.11225,3208.4,3208.3,0.62366]
[1737638655591,0.4886,3208.4,3208.3,0.62366]
[1737638655998,1.12777,3208.8,3208.7,0.62358]
[1737638657503,0.00467574,3208.9,3208.6,2.46445613]
[1737638657699,0.00467574,3208.9,3208.8,0.62356]
[1737638657700,0.62822574,3208.9,3208.8,0.62356]
[1737638658200,0.62822574,3208.9,3208.3,2.46445613]
[1737638658201,0.6236,3208.7,3208.6,0.6236]
[1737638658400,0.62363,3208.6,3208.5,0.62361]
[1737638658803,0.00467574,3208.9,3208.0,2.97355613]
[1737638659004,1.55891,3208.8,3208.0,2.97355613]
[1737638659195,1.55891,3208.8,3208.3,0.62365]
[1737638659400,0.62364,3208.5,3208.3,0.62365]
[1737638659595,0.62364,3208.5,3208.0,2.97355613]
[1737638659796,0.62364,3208.5,3208.3,0.62365]
[1737638659991,0.62364,3208.5,3208.0,2.97355613]
[1737638659992,0.62365,3208.4,3208.2,0.62367]
[1737638660305,0.62363,3208.5,3208.3,0.62364]
[1737638661005,0.62363,3208.5,3208.4,0.62364]
[1737638661308,0.4951,3208.7,3208.4,0.62364]
[1737638661309,0.4951,3208.7,3208.4,0.62362]
[1737638661603,0.62362,3208.6,3208.4,0.62362]
[1737638661796,0.62363,3208.5,3208.3,0.62364]
[1737638662194,0.4951,3208.7,3208.0,2.97355613]
[1737638662399,0.00467574,3208.9,3208.0,2.97355613]
[1737638662703,0.00467574,3208.9,3208.8,0.62356]
[1737638662909,0.00467574,3208.9,3208.8,3.83136]
[1737638664409,0.00467574,3208.9,3208.8,44.63136]
[1737638668513,0.62337,3209.8,3208.8,49.0078]
[1737638668816,0.4896,3210.0,3209.5,2.46445613]
[1737638669111,3.2078,3210.4,3210.3,0.62327]
[1737638669303,3.2078,3210.4,3209.9,0.62335]
[1737638669613,3.83106,3210.4,3210.2,0.62328]
[1737638669812,3.83106,3210.4,3210.0,0.00467574]
[1737638670013,3.2078,3210.4,3210.1,40.8]
[1737638670515,3.83106,3210.4,3210.2,0.62328]
[1737638671612,3.83105,3210.4,3210.1,40.8]
[1737638671807,0.62327,3210.3,3210.2,0.62328]
[1737638672304,3.2078,3210.4,3210.1,40.8]
[1737638672505,3.2078,3210.4,3210.0,0.00467574]
[1737638672506,0.62331,3210.1,3210.0,0.00467574]
[1737638674015,1.11931,3210.1,3210.0,0.00467574]
[1737638674417,0.62345,3209.4,3209.3,0.62346]
[1737638675113,0.62345,3209.4,3209.2,3.57022613]
[1737638675711,1.55847,3209.7,3209.0,0.00467574]
[1737638675909,0.6235,3209.1,3209.0,0.00467574]
[1737638678021,0.6235,3209.1,3209.0,0.62819574]
[1737638678221,0.6235,3209.1,3209.0,0.00467574]
[1737638682429,0.6236,3208.6,3208.5,3.2078]
[1737638682715,0.62362,3208.5,3208.4,40.8]
[1737638682919,3.83142,3208.5,3208.4,40.8]
[1737638683313,3.2078,3208.5,3208.2,0.62367]
[1737638683513,0.62366,3208.3,3208.2,0.62367]
[1737638683715,3.2078,3208.5,3208.0,0.00467574]
[1737638684019,4.76686,3208.5,3208.1,40.8]
[1737638684224,4.76686,3208.5,3208.0,0.00467574]
[1737638684225,0.5048,3208.4,3208.0,0.00467574]
[1737638684528,0.6237,3208.1,3208.0,0.00467574]
[1737638691427,3.2078,3208.5,3208.0,5.67693187]
[1737638691730,0.62367,3208.4,3208.3,0.62364]
[1737638692632,0.62367,3208.4,3208.3,41.42364]
[1737638693131,3.2078,3208.5,3208.0,7.23621187]
[1737638693331,3.83143,3208.5,3208.4,0.62364]
[1737638693629,3.83143,3208.5,3208.4,41.42364]
[1737638694225,3.83143,3208.5,3208.4,40.8]
[1737638694419,3.83143,3208.5,3208.3,0.62364]
[1737638694420,0.62365,3208.4,3208.3,0.62364]
[1737638695731,3.2078,3208.5,3208.0,7.23623187]
[1737638695929,0.62361,3208.6,3208.5,0.62362]
[1737638696131,0.62364,3208.5,3208.4,0.62363]
[1737638696436,0.62361,3208.6,3208.5,0.62361]
[1737638696935,0.62363,3208.5,3208.4,0.62363]
[1737638697432,0.49337574,3208.7,3208.1,40.8]
[1737638697636,1.55901,3208.6,3208.0,0.00467574]
[1737638697935,0.6237,3208.1,3208.0,0.00467574]
[1737638699636,3.2078,3208.3,3208.2,0.62368]
[1737638699841,2.05234574,3208.7,3208.0,2.46913187]
[1737638700030,0.62367,3208.3,3208.2,0.62367]
[1737638700227,0.6237,3208.1,3208.0,0.00467574]
[1737638700427,3.2078,3208.4,3208.0,0.00467574]
[1737638700629,0.62362,3208.5,3208.4,0.62363]
[1737638700828,0.00467574,3208.7,3208.6,0.6236]
[1737638701235,0.00467574,3208.7,3208.6,1.1078]
[1737638701541,0.00467574,3208.7,3208.6,41.9078]
[1737638702233,0.00467574,3208.7,3208.6,0.4842]
[1737638702438,0.62825574,3208.7,3208.6,0.4842]
[1737638703133,0.62825574,3208.7,3208.5,0.62361]
[1737638703134,0.00467574,3208.7,3208.5,0.62361]
[1737638703334,0.00467574,3208.7,3208.4,3.83143]
[1737638703641,0.62361,3208.6,3208.5,0.62362]
[1737638703838,0.00467574,3208.7,3208.4,3.2078]
[1737638704037,0.62366,3208.3,3208.2,1.10797]
[1737638704237,0.62365,3208.4,3208.2,0.4843]
[1737638704537,0.5128,3208.6,3208.3,0.62366]
[1737638704841,0.62363,3208.5,3208.4,0.62364]
[1737638705337,0.62363,3208.5,3208.3,0.62365]
[1737638705541,0.62364,3208.4,3208.3,0.62365]
[1737638705941,0.62366,3208.3,3208.2,0.4843]
[1737638706234,0.6237,3208.2,3208.0,0.62837574]
[1737638706442,0.6237,3208.2,3208.0,0.00467574]
[1737638706635,0.6237,3208.2,3208.1,0.6237]
[1737638706830,0.5128,3208.6,3208.3,0.62365]
[1737638707036,0.62366,3208.3,3208.0,0.00467574]
[1737638707235,0.5128,3208.6,3208.0,0.00467574]
[1737638707433,1.13641,3208.6,3208.1,2.46445613]
[1737638707638,0.5128,3208.6,3208.1,2.46445613]
[1737638707836,0.00467574,3208.7,3208.6,0.6236]
[1737638708839,0.62825574,3208.7,3208.6,0.6236]
[1737638709029,0.00467574,3208.7,3208.2,0.5194]
[1737638709434,0.00467574,3208.7,3208.6,0.6236]
[1737638710636,0.62825574,3208.7,3208.6,0.6236]
[1737638712043,0.00467574,3208.7,3208.3,3.2078]
[1737638712344,0.62363,3208.5,3208.4,0.62363]
[1737638712846,0.62364,3208.4,3208.3,44.63145]
[1737638713045,0.00467574,3208.7,3208.3,44.0078]
[1737638713345,0.62363,3208.5,3208.4,0.62362]
[1737638715245,0.00467574,3208.7,3208.3,40.8]
[1737638715246,0.62361,3208.6,3208.5,0.62361]
[1737638715747,0.62363,3208.5,3208.4,0.62362]
[1737638717953,0.00467574,3208.7,3208.3,40.8]
[1737638718144,0.62363,3208.5,3208.4,0.62362]
[1737638718944,0.62361,3208.6,3208.5,0.6236]
[1737638719348,0.00467574,3208.7,3208.3,40.8]
[1737638719550,0.6237,3208.1,3208.0,0.62838574]
[1737638719751,0.6237,3208.1,3208.0,0.00467574]
[1737638720552,0.62372,3208.0,3207.9,3.2078]
[1737638720749,3.7291,3208.0,3206.9,2.46445613]
[1737638721058,3.7291,3208.0,3206.7,0.62396]
[1737638721059,0.62396,3206.8,3206.7,0.62396]
[1737638721249,0.62396,3206.8,3206.6,1.14898]
[1737638721649,0.62394,3206.9,3206.7,0.62397]
[1737638721851,0.62859574,3207.0,3206.8,0.62395]
[1737638722056,0.00467574,3207.0,3206.9,3.08838613]
[1737638722352,0.00467574,3207.0,3206.9,6.29618613]
[1737638722956,0.00467574,3207.0,3206.9,47.09618613]
[1737638723349,0.62372,3208.0,3207.8,0.62375]
[1737638723850,3.2078,3208.5,3207.9,2.46445613]
[1737638724045,3.2078,3208.5,3208.2,2.46445613]
[1737638724254,3.2078,3208.5,3208.4,0.62364]
[1737638724855,0.62361,3208.6,3208.4,0.62364]
[1737638725462,0.62362,3208.5,3208.3,1.12075]
[1737638726460,0.62361,3208.6,3208.4,41.42364]
[1737638727157,0.00467574,3208.7,3208.4,40.8]
[1737638727357,0.62362,3208.5,3208.4,40.8]
[1737638728757,0.6236,3208.6,3208.4,40.8]
[1737638728958,0.62362,3208.5,3208.4,40.8]
[1737638729357,0.62362,3208.5,3208.4,41.42364]
[1737638729756,0.00467574,3208.7,3208.6,0.6236]
[1737638729962,0.00467574,3208.7,3208.6,6.29585613]
[1737638730559,0.4869,3209.5,3209.4,0.62344]
[1737638731062,0.4943,3210.1,3209.8,0.62337]
[1737638731264,1.0062,3210.1,3209.9,0.62334]
[1737638731460,0.5119,3210.1,3209.9,0.62334]
[1737638732258,0.00467574,3210.3,3210.2,0.62329]
[1737638733557,3.2078,3211.5,3210.9,0.62315]
[1737638733756,3.2078,3211.5,3210.7,3.2078]
[1737638733967,0.62312,3211.1,3210.8,0.62317]
[1737638734356,3.2078,3211.5,3210.8,0.62317]
[1737638734357,0.62311,3211.2,3210.8,0.62317]
[1737638735065,0.62312,3211.1,3210.8,0.62317]
[1737638735764,0.62311,3211.2,3210.7,3.2078]
[1737638735970,0.62312,3211.1,3210.9,0.62315]
[1737638736166,0.6231,3211.2,3210.7,3.2078]
[1737638736365,0.6231,3211.2,3210.9,0.62314]
[1737638736760,0.62313,3211.1,3210.7,3.2078]
[1737638737060,0.62313,3211.1,3210.8,0.62317]
[1737638737262,0.62316,3210.9,3210.7,3.83098]
[1737638737458,0.62314,3211.0,3210.8,0.62317]
[1737638737657,0.62314,3211.0,3210.3,0.5221]
[1737638737658,0.62324,3210.5,3210.3,3.83106]
[1737638737858,1.0294,3210.9,3210.3,3.2078]
[1737638738065,1.0294,3210.9,3209.8,0.4844]
[1737638738066,0.62333,3210.0,3209.8,1.10775]
[1737638738264,0.62332,3210.1,3209.9,0.62335]
[1737638738862,3.2078,3210.5,3209.7,3.9459442]
[1737638739255,3.2078,3210.5,3210.3,0.62326]
[1737638739768,3.2078,3210.5,3210.4,0.62325]
[1737638739965,3.2078,3210.5,3210.3,0.62326]
[1737638740366,3.2078,3210.5,3210.4,0.62325]
[1737638740874,1.65256,3210.9,3210.6,0.6232]
[1737638741166,0.62319,3210.8,3210.5,0.62323]
[1737638741371,0.62319,3210.8,3210.6,0.62321]
[1737638742071,1.0294,3210.9,3210.1,3.2078]
[1737638742372,0.62321,3210.6,3210.4,0.62324]
[1737638742868,0.62318,3210.8,3210.2,0.62329]
[1737638743170,0.62321,3210.7,3210.5,0.62323]
[1737638743870,0.62318,3210.8,3210.6,0.6232]
[1737638744568,3.2078,3211.0,3210.9,0.62315]
[1737638744772,0.62312,3211.1,3210.5,3.2078]
[1737638745071,0.62314,3211.0,3210.9,0.62315]
[1737638745272,0.62312,3211.1,3211.0,0.62313]
[1737638746476,0.62311,3211.2,3211.1,0.62311]
[1737638748183,0.00467574,3211.3,3210.6,40.8]
[1737638748380,0.00467574,3211.3,3211.2,0.6231]
[1737638749077,0.4929,3211.7,3211.6,0.62302]
[1737638750183,1.1159,3211.7,3211.6,0.62302]
[1737638750379,0.4929,3211.7,3211.6,0.62302]
[1737638751883,0.62306,3211.5,3211.4,0.62304]
[1737638752084,0.62306,3211.4,3211.3,0.00467574]
[1737638753875,0.62306,3211.4,3210.5,3.2078]
[1737638753876,0.62321,3210.7,3210.6,0.6232]
[1737638754081,3.2078,3211.0,3210.5,3.2078]
[1737638754282,0.62321,3210.6,3210.5,3.83102]
[1737638754482,0.62321,3210.6,3210.5,3.2078]
[1737638755291,3.2078,3211.0,3210.5,3.2078]
[1737638755480,0.521,3211.3,3210.5,3.2078]
[1737638755684,0.62317,3210.9,3210.6,0.62321]
[1737638755883,0.62317,3210.9,3210.8,0.62317]
[1737638756487,0.521,3211.3,3210.8,0.62317]
[1737638756692,0.62306,3211.4,3211.3,0.62306]
[1737638757189,3.2078,3211.5,3210.9,0.5247]
[1737638757491,3.2078,3211.5,3211.0,0.5103]
[1737638757693,3.83085,3211.5,3211.4,0.62306]
[1737638757991,2.04558,3211.8,3211.2,1.55775]
[1737638757992,0.4881,3211.8,3211.2,1.55775]
[1737638758190,0.4881,3211.8,3211.7,0.623]
[1737638758883,1.11108,3211.8,3211.7,0.623]
[1737638760291,0.62304,3211.6,3211.5,0.62301]
[1737638760690,0.62301,3211.7,3211.6,0.623]
[1737638762192,0.62301,3211.7,3210.6,3.2078]
[1737638762193,0.62316,3210.9,3210.6,3.2078]
[1737638762394,3.2078,3211.3,3210.6,3.2078]
[1737638762692,0.62319,3210.7,3210.6,3.2078]
[1737638762995,0.62321,3210.6,3210.5,0.62321]
[1737638763594,0.5012,3211.2,3210.3,3.7080134]
[1737638763892,0.5012,3211.2,3210.9,0.62314]
[1737638764085,0.62313,3211.1,3211.0,0.62313]
[1737638764888,0.5012,3211.2,3210.7,0.62318]
[1737638764889,0.62317,3210.9,3210.7,0.62318]
[1737638765088,0.62319,3210.7,3210.6,1.1406]
[1737638765494,0.5183,3211.1,3210.6,0.5174]
[1737638765702,0.62319,3210.7,3210.6,1.1406]
[1737638766695,0.62318,3210.8,3210.7,0.62319]
[1737638767094,0.5183,3211.1,3210.3,3.98194929]
[1737638767289,0.62322,3210.6,3210.5,0.62322]
[1737638767490,0.5183,3211.1,3210.3,0.9998]
[1737638767698,0.62326,3210.4,3210.3,0.62326]
[1737638767998,0.62324,3210.5,3210.4,0.62324]
[1737638768798,0.94976598,3211.1,3210.2,44.01247574]
[1737638769095,0.62314,3211.0,3210.9,0.62315]
[1737638769490,0.62313,3211.0,3210.5,1.55807]
[1737638769802,0.62318,3210.8,3210.7,0.62318]
[1737638769997,0.62316,3210.9,3210.8,0.62316]
[1737638770509,0.5183,3211.1,3210.5,1.55809]
[1737638770696,1.14142,3211.1,3211.0,0.62313]
[1737638770904,0.62312,3211.1,3211.0,0.62313]
[1737638771796,1.55779,3211.1,3210.3,5.05392929]
[1737638771999,0.62325,3210.5,3210.4,0.62323]
[1737638772396,0.4816,3211.0,3210.3,1.0232]
[1737638772607,0.6232,3210.7,3210.6,0.62319]
[1737638772799,0.4816,3211.0,3210.3,1.0232]
[1737638773100,0.62322,3210.6,3210.5,0.62322]
[1737638773891,0.62325,3210.4,3210.3,1.64646]
[1737638775197,0.62325,3210.4,3210.3,1.0232]
[1737638775398,0.62325,3210.4,3210.3,1.64647]
[1737638775598,0.62325,3210.4,3210.3,1.0232]
[1737638775997,0.62325,3210.4,3210.3,1.64647]
[1737638776393,0.62327,3210.3,3210.2,0.00467574]
[1737638776804,4.70981386,3210.5,3210.4,0.62325]
[1737638777004,3.83103,3210.6,3210.3,40.8]
[1737638777205,3.83103,3210.6,3210.5,0.62323]
[1737638777402,3.2078,3210.6,3210.3,40.8]
[1737638777604,0.62325,3210.4,3210.3,40.8]
[1737638777906,0.62324,3210.5,3210.4,0.62324]
[1737638779499,3.2078,3210.6,3210.3,40.8]
[1737638779699,3.83102,3210.6,3210.5,0.62323]
[1737638780592,0.6232,3210.7,3210.3,41.797]
[1737638780798,3.2078,3211.0,3210.3,41.797]
[1737638780994,1.55789,3210.9,3210.3,41.797]
[1737638781202,0.62327,3210.3,3210.2,0.00467574]
[1737638781797,0.5123,3210.5,3210.2,0.00467574]
[1737638782108,0.62326,3210.4,3210.3,0.62326]
[1737638782406,1.55801,3210.7,3210.3,0.62326]
[1737638782407,3.57318,3210.8,3210.7,0.62319]
[1737638782608,0.6232,3210.7,3210.6,0.6232]
[1737638785501,2.95,3210.8,3210.4,0.491]
[1737638785807,0.62323,3210.6,3210.5,0.62322]
[1737638786909,0.62321,3210.7,3210.6,0.6232]